fUST/lending_fUST_20251208
["ID","MTS","AMOUNT","RATE_DAILY","PERIOD"]
[397227085,1765158646485,-500.0,9.053e-05,2]
[397227086,1765158646494,-500.0,9.053e-05,2]
[397227088,1765158646503,-500.0,9.053e-05,2]
[397227090,1765158646512,-500.0,9.053e-05,2]
[397227092,1765158646521,-763.11,9.053e-05,2]
[397227094,1765158646530,-1674.81,9.053e-05,2]
[397227096,1765158646539,-716.98,9.053e-05,2]
[397227098,1765158646548,-1523.83,9.053e-05,2]
[397227100,1765158646557,-1322.71,9.053e-05,2]
[397227102,1765158646567,-507.84867672,9.053e-05,2]
[397227104,1765158646575,-442.76497221,9.053e-05,2]
[397227106,1765158646584,-500.0,9.053e-05,2]
[397227108,1765158646593,-500.0,9.053e-05,2]
[397227110,1765158646602,-707.39,9.053e-05,2]
[397227112,1765158646612,-500.0,9.053e-05,2]
[397227114,1765158646621,-531.32854429,9.053e-05,2]
[397227116,1765158646630,-500.0,9.053e-05,2]
[397227118,1765158646639,-548.97,9.053e-05,2]
[397227120,1765158646649,-813.66,9.053e-05,2]
[397227122,1765158646658,-500.0,9.053e-05,2]
[397227124,1765158646667,-714.73,9.053e-05,2]
[397227126,1765158646679,-500.0,9.053e-05,2]
[397227128,1765158646688,-753.32,9.053e-05,2]
[397227130,1765158646698,-1100.78,9.053e-05,2]
[397227132,1765158646709,-500.0,9.053e-05,2]
[397227135,1765158646719,-2786.35,9.053e-05,2]
[397227137,1765158646728,-1107.72,9.053e-05,2]
[397227139,1765158646737,-826.62,9.053e-05,2]
[397227141,1765158646746,-1135.64,9.053e-05,2]
[397227143,1765158646755,-987.51,9.053e-05,2]
[397227145,1765158646765,-500.0,9.053e-05,2]
[397227147,1765158646774,-500.0,9.053e-05,2]
[397227149,1765158646783,-1126.71,9.053e-05,2]
[397227151,1765158646793,-500.0,9.053e-05,2]
[397227153,1765158646802,-500.0,9.053e-05,2]
[397227155,1765158646811,-1012.76,9.053e-05,2]
[397227157,1765158646820,-500.0,9.053e-05,2]
[397227159,1765158646829,-503.61,9.053e-05,2]
[397227161,1765158646838,-521.74,9.053e-05,2]
[397227163,1765158646847,-500.0,9.054e-05,2]
[397227165,1765158646857,-226.96,9.054e-05,2]
[397227167,1765158646866,-597.0,9.073e-05,2]
[397227169,1765158646876,-313.98450045,9.083e-05,2]
[397227171,1765158646885,-214.51,9.09e-05,2]
[397227173,1765158646895,-179.32762852,9.121e-05,2]
[397227175,1765158646911,-1784.53,9.159e-05,2]
[397227177,1765158646920,-1287.14,9.159e-05,2]
[397227179,1765158646930,-781.92,9.159e-05,2]
[397227181,1765158646940,-500.0,9.159e-05,2]
[397227183,1765158646949,-1624.75,9.159e-05,2]
[397227185,1765158646959,-500.0,9.159e-05,2]
[397227187,1765158646972,-5441.61,9.159e-05,2]
[397227190,1765158646981,-831.43,9.159e-05,2]
[397227191,1765158646991,-8774.01,9.159e-05,2]
[397227193,1765158647001,-1006.84,9.159e-05,2]
[397227195,1765158647010,-500.0,9.159e-05,2]
[397227198,1765158647023,-500.0,9.159e-05,2]
[397227200,1765158647032,-1284.75,9.159e-05,2]
[397227202,1765158647042,-500.0,9.16e-05,2]
[397227204,1765158647052,-500.0,9.16e-05,2]
[397227206,1765158647061,-500.0,9.16e-05,2]
[397227208,1765158647072,-500.0,9.16e-05,2]
[397227210,1765158647081,-500.0,9.16e-05,2]
[397227212,1765158647091,-500.0,9.16e-05,2]
[397227214,1765158647100,-500.0,9.16e-05,2]
[397227216,1765158647110,-500.0,9.16e-05,2]
[397227218,1765158647120,-660.29,9.16e-05,2]
[397227220,1765158647130,-508.59,9.16e-05,2]
[397227222,1765158647139,-209.78107393,9.16e-05,2]
[397227224,1765158647149,-500.0,9.16e-05,2]
[397227226,1765158647159,-681.49,9.16e-05,2]
[397227228,1765158647168,-500.0,9.16e-05,2]
[397227230,1765158647177,-500.0,9.16e-05,2]
[397227232,1765158647186,-676.7,9.16e-05,2]
[397227234,1765158647196,-500.0,9.16e-05,2]
[397227236,1765158647206,-2106.46,9.16e-05,2]
[397227238,1765158647216,-4053.3,9.16e-05,2]
[397227240,1765158647225,-830.15,9.16e-05,2]
[397227242,1765158647235,-500.0,9.16e-05,2]
[397227244,1765158647244,-831.32,9.16e-05,2]
[397227246,1765158647254,-500.0,9.16e-05,2]
[397227248,1765158647263,-2177.06,9.16e-05,2]
[397227250,1765158647272,-500.0,9.16e-05,2]
[397227252,1765158647281,-500.0,9.16e-05,2]
[397227254,1765158647290,-582.76,9.16e-05,2]
[397227256,1765158647300,-765.06,9.16e-05,2]
[397227258,1765158647310,-1312.37,9.16e-05,2]
[397227260,1765158647319,-780.67,9.16e-05,2]
[397227262,1765158647328,-338.66743109,9.16e-05,2]
[397227264,1765158647338,-7646.11,9.16e-05,2]
[397227267,1765158647348,-890.09,9.16e-05,2]
[397227269,1765158647358,-743.77,9.16e-05,2]
[397227271,1765158647367,-4516.2,9.16e-05,2]
[397227273,1765158647378,-1243.14,9.16e-05,2]
[397227275,1765158647388,-717.72,9.16e-05,2]
[397227277,1765158647398,-1378.21,9.16e-05,2]
[397227279,1765158647408,-500.0,9.16e-05,2]
[397227281,1765158647418,-1115.72,9.16e-05,2]
[397227283,1765158647428,-787.86,9.16e-05,2]
[397227285,1765158647437,-2770.97,9.16e-05,2]
[397227287,1765158647447,-507.5,9.16e-05,2]
[397227289,1765158647456,-1069.73,9.16e-05,2]
[397227291,1765158647466,-2758.21,9.16e-05,2]
[397227293,1765158647476,-1044.77,9.16e-05,2]
[397227295,1765158647485,-500.0,9.16e-05,2]
[397227297,1765158647494,-500.0,9.16e-05,2]
[397227299,1765158647503,-2087.68,9.16e-05,2]
[397227301,1765158647514,-1189.92,9.16e-05,2]
[397227303,1765158647524,-1134.66,9.16e-05,2]
[397227305,1765158647533,-500.0,9.16e-05,2]
[397227307,1765158647542,-500.0,9.16e-05,2]
[397227309,1765158647551,-647.28,9.161e-05,2]
[397227311,1765158647561,-632.75,9.161e-05,2]
[397227313,1765158647571,-500.0,9.161e-05,2]
[397227316,1765158647582,-674.68,9.161e-05,2]
[397227318,1765158647591,-500.0,9.161e-05,2]
[397227319,1765158647601,-607.54,9.161e-05,2]
[397227320,1765158647611,-587.25,9.161e-05,2]
[397227321,1765158647625,-656.75,9.161e-05,2]
[397227322,1765158647634,-500.0,9.161e-05,2]
[397227323,1765158647644,-2327.71,9.161e-05,2]
[397227324,1765158647653,-500.0,9.161e-05,2]
[397227325,1765158647663,-500.0,9.161e-05,2]
[397227326,1765158647672,-500.0,9.161e-05,2]
[397227327,1765158647681,-1503.36,9.161e-05,2]
[397227328,1765158647691,-646.26,9.161e-05,2]
[397227329,1765158647700,-500.0,9.161e-05,2]
[397227330,1765158647710,-500.0,9.161e-05,2]
[397227331,1765158647719,-500.0,9.161e-05,2]
[397227332,1765158647729,-510.39,9.161e-05,2]
[397227334,1765158647739,-508.86931103,9.161e-05,2]
[397227336,1765158647749,-1071.66,9.161e-05,2]
[397227338,1765158647759,-738.34,9.161e-05,2]
[397227340,1765158647769,-941.97,9.161e-05,2]
[397227342,1765158647780,-1025.99,9.161e-05,2]
[397227344,1765158647789,-219.92318363,9.161e-05,2]
[397227346,1765158647798,-641.18,9.161e-05,2]
[397227348,1765158647808,-1193.84,9.161e-05,2]
[397227350,1765158647817,-500.0,9.161e-05,2]
[397227352,1765158647826,-500.0,9.161e-05,2]
[397227354,1765158647835,-1371.66,9.161e-05,2]
[397227356,1765158647845,-1119.63,9.161e-05,2]
[397227358,1765158647854,-500.0,9.161e-05,2]
[397227360,1765158647864,-1353.14,9.161e-05,2]
[397227362,1765158647874,-2249.62,9.161e-05,2]
[397227364,1765158647884,-1666.34,9.161e-05,2]
[397227366,1765158647894,-500.0,9.161e-05,2]
[397227368,1765158647904,-853.92,9.161e-05,2]
[397227370,1765158647913,-1276.37,9.161e-05,2]
[397227372,1765158647923,-511.342015,9.161e-05,2]
[397227374,1765158647932,-803.83,9.161e-05,2]
[397227376,1765158647942,-2249.24,9.161e-05,2]
[397227378,1765158647956,-607.96,9.161e-05,2]
[397227380,1765158647965,-519.73,9.161e-05,2]
[397227382,1765158647975,-591.6,9.161e-05,2]
[397227384,1765158647986,-1693.47,9.161e-05,2]
[397227386,1765158647996,-2246.33,9.161e-05,2]
[397227388,1765158648007,-3293.57,9.161e-05,2]
[397227390,1765158648016,-500.0,9.161e-05,2]
[397227392,1765158648026,-2048.68,9.161e-05,2]
[397227394,1765158648035,-2890.4,9.161e-05,2]
[397227396,1765158648045,-500.0,9.161e-05,2]
[397227398,1765158648054,-1160.48,9.161e-05,2]
[397227400,1765158648063,-613.52,9.161e-05,2]
[397227402,1765158648073,-500.0,9.161e-05,2]
[397227405,1765158648083,-2746.21,9.161e-05,2]
[397227406,1765158648092,-826.47,9.161e-05,2]
[397227408,1765158648102,-1473.57,9.161e-05,2]
[397227411,1765158648111,-1720.67,9.161e-05,2]
[397227412,1765158648120,-500.0,9.161e-05,2]
[397227415,1765158648130,-500.0,9.161e-05,2]
[397227417,1765158648139,-2219.23,9.161e-05,2]
[397227419,1765158648150,-6596.5,9.161e-05,2]
[397227421,1765158648160,-869.16,9.161e-05,2]
[397227423,1765158648170,-692.64,9.161e-05,2]
[397227425,1765158648180,-569.33,9.161e-05,2]
[397227427,1765158648191,-500.0,9.161e-05,2]
[397227429,1765158648200,-500.0,9.161e-05,2]
[397227431,1765158648211,-3739.99,9.161e-05,2]
[397227433,1765158648220,-945.56,9.161e-05,2]
[397227435,1765158648229,-627.61,9.161e-05,2]
[397227437,1765158648239,-500.0,9.161e-05,2]
[397227439,1765158648248,-928.54,9.161e-05,2]
[397227441,1765158648259,-1339.38,9.161e-05,2]
[397227443,1765158648268,-500.0,9.161e-05,2]
[397227445,1765158648277,-1370.77,9.161e-05,2]
[397227447,1765158648287,-500.0,9.161e-05,2]
[397227449,1765158648296,-500.0,9.161e-05,2]
[397227451,1765158648306,-534.4831017,9.161e-05,2]
[397227453,1765158648315,-1835.0,9.161e-05,2]
[397227455,1765158648324,-4313.4,9.161e-05,2]
[397227457,1765158648333,-1267.92,9.161e-05,2]
[397227459,1765158648344,-500.0,9.161e-05,2]
[397227461,1765158648354,-2122.9,9.161e-05,2]
[397227463,1765158648364,-500.0,9.161e-05,2]
[397227465,1765158648374,-687.96,9.161e-05,2]
[397227467,1765158648383,-1621.91,9.161e-05,2]
[397227469,1765158648394,-1099.74,9.161e-05,2]
[397227471,1765158648404,-14233.66,9.161e-05,2]
[397227473,1765158648414,-500.0,9.161e-05,2]
[397227476,1765158648424,-1165.84,9.161e-05,2]
[397227478,1765158648433,-1514.7,9.161e-05,2]
[397227480,1765158648442,-1526.38,9.161e-05,2]
[397227482,1765158648452,-4175.33,9.161e-05,2]
[397227484,1765158648461,-1544.98,9.162e-05,2]
[397227486,1765158648470,-7520.16,9.162e-05,2]
[397227488,1765158648480,-2682.12,9.162e-05,2]
[397227490,1765158648489,-1736.26,9.162e-05,2]
[397227491,1765158648499,-1367.54,9.162e-05,2]
[397227493,1765158648508,-841.46,9.162e-05,2]
[397227495,1765158648517,-3317.64,9.162e-05,2]
[397227497,1765158648527,-2867.25,9.162e-05,2]
[397227499,1765158648536,-11776.86,9.162e-05,2]
[397227501,1765158648545,-24280.06,9.162e-05,2]
[397227503,1765158648555,-523.93,9.162e-05,2]
[397227505,1765158648564,-5359.29,9.162e-05,2]
[397227507,1765158648574,-739.75,9.162e-05,2]
[397227509,1765158648583,-2562.62,9.162e-05,2]
[397227512,1765158648592,-3304.28,9.162e-05,2]
[397227514,1765158648603,-500.0,9.162e-05,2]
[397227516,1765158648613,-5000.0,9.162e-05,2]
[397227518,1765158648623,-1553.39,9.162e-05,2]
[397227520,1765158648633,-500.0,9.162e-05,2]
[397227522,1765158648644,-1000.56,9.162e-05,2]
[397227524,1765158648654,-2266.14,9.162e-05,2]
[397227526,1765158648663,-4517.97,9.162e-05,2]
[397227528,1765158648672,-4308.07,9.162e-05,2]
[397227530,1765158648681,-1606.66,9.162e-05,2]
[397227531,1765158648691,-3293.93,9.162e-05,2]
[397227533,1765158648702,-420.0,9.17e-05,2]
[397227535,1765158648711,-250.0,9.241e-05,2]
[397227538,1765158648723,-357.25356529,9.316e-05,2]
[397227540,1765158648732,-617.47033956,9.316e-05,2]
[397227542,1765158648742,-151.0,9.316e-05,2]
[397227544,1765158648751,-306.50165599,9.316e-05,2]
[397227546,1765158648760,-500.0,9.316e-05,2]
[397227548,1765158648770,-500.0,9.316e-05,2]
[397227550,1765158648779,-500.0,9.316e-05,2]
[397227552,1765158648789,-500.0,9.316e-05,2]
[397227554,1765158648798,-500.0,9.316e-05,2]
[397227556,1765158648808,-500.0,9.316e-05,2]
[397227558,1765158648818,-500.0,9.316e-05,2]
[397227560,1765158648827,-500.0,9.316e-05,2]
[397227562,1765158648837,-500.0,9.316e-05,2]
[397227578,1765158648846,-500.0,9.316e-05,2]
[397227581,1765158649020,-505.67031917,9.316e-05,2]
[397227583,1765158649029,-615.84825526,9.316e-05,2]
[397227585,1765158649039,-1000.0,9.316e-05,2]
[397227587,1765158649048,-1000.0,9.316e-05,2]
[397227589,1765158649057,-1000.0,9.316e-05,2]
[397227591,1765158649066,-1000.0,9.316e-05,2]
[397227593,1765158649075,-2230.315306,9.316e-05,2]
[397227595,1765158649084,-1000.0,9.316e-05,2]
[397227597,1765158649093,-1000.0,9.316e-05,2]
[397227599,1765158649102,-1000.0,9.316e-05,2]
[397227601,1765158649111,-1000.0,9.316e-05,2]
[397227603,1765158649120,-1000.0,9.316e-05,2]
[397227605,1765158649129,-1000.0,9.316e-05,2]
[397227607,1765158649139,-1000.0,9.316e-05,2]
[397227609,1765158649148,-1000.0,9.316e-05,2]
[397227610,1765158649158,-1000.0,9.316e-05,2]
[397227612,1765158649167,-1000.0,9.316e-05,2]
[397227614,1765158649176,-1000.0,9.316e-05,2]
[397227616,1765158649186,-1000.0,9.316e-05,2]
[397227618,1765158649194,-1000.0,9.316e-05,2]
[397227620,1765158649203,-1000.0,9.316e-05,2]
[397227622,1765158649212,-1121.68767996,9.316e-05,2]
[397227624,1765158649221,-500.0,9.327e-05,2]
[397227626,1765158649230,-520.85,9.327e-05,2]
[397227628,1765158649239,-500.0,9.327e-05,2]
[397227630,1765158649250,-500.0,9.327e-05,2]
[397227632,1765158649259,-477.58295317,9.327e-05,2]
[397227634,1765158649268,-500.0,9.327e-05,2]
[397227636,1765158649277,-500.0,9.327e-05,2]
[397227638,1765158649286,-625.55,9.327e-05,2]
[397227639,1765158649295,-500.0,9.327e-05,2]
[397227641,1765158649304,-500.0,9.327e-05,2]
[397227643,1765158649313,-500.80141877,9.327e-05,2]
[397227645,1765158649323,-500.0,9.327e-05,2]
[397227647,1765158649331,-500.0,9.327e-05,2]
[397227649,1765158649340,-500.0,9.327e-05,2]
[397227651,1765158649349,-789.62,9.327e-05,2]
[397227653,1765158649358,-1445.12,9.327e-05,2]
[397227655,1765158649367,-500.0,9.327e-05,2]
[397227657,1765158649376,-613.85,9.327e-05,2]
[397227659,1765158649386,-500.0,9.327e-05,2]
[397227660,1765158649394,-500.0,9.327e-05,2]
[397227662,1765158649405,-662.46,9.327e-05,2]
[397227664,1765158649415,-500.0,9.327e-05,2]
[397227666,1765158649425,-500.0,9.327e-05,2]
[397227668,1765158649435,-500.0,9.327e-05,2]
[397227670,1765158649444,-500.0,9.327e-05,2]
[397227672,1765158649455,-500.0,9.327e-05,2]
[397227674,1765158649465,-500.0,9.327e-05,2]
[397227676,1765158649475,-655.06,9.327e-05,2]
[397227678,1765158649484,-500.0,9.327e-05,2]
[397227680,1765158649494,-500.0,9.327e-05,2]
[397227682,1765158649503,-699.53,9.327e-05,2]
[397227684,1765158649512,-500.0,9.327e-05,2]
[397227686,1765158649521,-500.0,9.327e-05,2]
[397227688,1765158649530,-500.0,9.327e-05,2]
[397227690,1765158649539,-500.0,9.327e-05,2]
[397227692,1765158649548,-500.0,9.327e-05,2]
[397227694,1765158649557,-500.0,9.327e-05,2]
[397227696,1765158649566,-500.0,9.327e-05,2]
[397227698,1765158649575,-1444.36,9.327e-05,2]
[397227700,1765158649584,-565.15234257,9.327e-05,2]
[397227702,1765158649593,-1340.56,9.327e-05,2]
[397227704,1765158649602,-500.0,9.327e-05,2]
[397227706,1765158649612,-501.46530122,9.327e-05,2]
[397227708,1765158649621,-500.0,9.327e-05,2]
[397227710,1765158649631,-500.0,9.327e-05,2]
[397227712,1765158649641,-500.0,9.327e-05,2]
[397227714,1765158649649,-500.0,9.327e-05,2]
[397227716,1765158649659,-502.4481062,9.327e-05,2]
[397227718,1765158649668,-500.0,9.327e-05,2]
[397227720,1765158649677,-1337.79,9.327e-05,2]
[397227722,1765158649686,-500.0,9.327e-05,2]
[397227724,1765158649695,-500.0,9.327e-05,2]
[397227726,1765158649705,-660.99,9.327e-05,2]
[397227728,1765158649714,-206.5091527,9.327e-05,2]
[397227730,1765158649723,-500.0,9.327e-05,2]
[397227732,1765158649732,-618.52,9.327e-05,2]
[397227734,1765158649742,-500.0,9.327e-05,2]
[397227736,1765158649751,-608.64,9.327e-05,2]
[397227738,1765158649760,-646.36,9.327e-05,2]
[397227740,1765158649770,-1132.84,9.327e-05,2]
[397227742,1765158649778,-500.0,9.327e-05,2]
[397227744,1765158649787,-500.0,9.327e-05,2]
[397227746,1765158649796,-500.0,9.327e-05,2]
[397227748,1765158649805,-500.0,9.327e-05,2]
[397227750,1765158649814,-1509.55,9.327e-05,2]
[397227752,1765158649824,-500.0,9.327e-05,2]
[397227754,1765158649833,-689.07,9.327e-05,2]
[397227755,1765158649842,-500.0,9.327e-05,2]
[397227757,1765158649851,-500.0,9.327e-05,2]
[397227759,1765158649860,-1526.55,9.327e-05,2]
[397227761,1765158649869,-603.10981268,9.327e-05,2]
[397227763,1765158649879,-614.35,9.327e-05,2]
[397227765,1765158649888,-500.0,9.327e-05,2]
[397227767,1765158649898,-1012.63,9.327e-05,2]
[397227769,1765158649908,-500.0,9.327e-05,2]
[397227771,1765158649918,-774.21,9.327e-05,2]
[397227773,1765158649927,-500.0,9.327e-05,2]
[397227775,1765158649938,-500.0,9.327e-05,2]
[397227777,1765158649947,-2867.34,9.327e-05,2]
[397227779,1765158649960,-500.0,9.327e-05,2]
[397227781,1765158649969,-500.0,9.327e-05,2]
[397227783,1765158649978,-2057.3,9.327e-05,2]
[397227785,1765158649987,-500.0,9.327e-05,2]
[397227787,1765158649996,-500.0,9.327e-05,2]
[397227789,1765158650006,-708.46,9.327e-05,2]
[397227791,1765158650015,-500.0,9.327e-05,2]
[397227793,1765158650024,-500.0,9.327e-05,2]
[397227795,1765158650032,-765.9,9.327e-05,2]
[397227797,1765158650042,-1054.73,9.327e-05,2]
[397227799,1765158650050,-1171.87,9.327e-05,2]
[397227801,1765158650059,-500.0,9.327e-05,2]
[397227803,1765158650069,-500.0,9.327e-05,2]
[397227805,1765158650077,-500.0,9.327e-05,2]
[397227807,1765158650086,-500.0,9.327e-05,2]
[397227809,1765158650096,-804.66,9.327e-05,2]
[397227811,1765158650111,-653.73,9.327e-05,2]
[397227813,1765158650121,-500.0,9.327e-05,2]
[397227815,1765158650131,-757.76,9.327e-05,2]
[397227817,1765158650140,-507.35,9.327e-05,2]
[397227819,1765158650149,-649.29,9.327e-05,2]
[397227821,1765158650159,-500.0,9.327e-05,2]
[397227823,1765158650168,-630.53,9.327e-05,2]
[397227825,1765158650177,-500.0,9.327e-05,2]
[397227827,1765158650187,-957.87,9.327e-05,2]
[397227829,1765158650196,-500.0,9.327e-05,2]
[397227831,1765158650206,-500.0,9.327e-05,2]
[397227833,1765158650215,-786.93,9.327e-05,2]
[397227835,1765158650224,-1788.53,9.327e-05,2]
[397227837,1765158650233,-732.96,9.327e-05,2]
[397227838,1765158650242,-843.39,9.327e-05,2]
[397227840,1765158650250,-500.0,9.327e-05,2]
[397227842,1765158650259,-500.0,9.327e-05,2]
[397227844,1765158650268,-1568.24,9.327e-05,2]
[397227846,1765158650277,-500.0,9.327e-05,2]
[397227848,1765158650287,-500.0,9.327e-05,2]
[397227850,1765158650295,-500.0,9.327e-05,2]
[397227852,1765158650304,-570.65135419,9.327e-05,2]
[397227854,1765158650313,-500.0,9.327e-05,2]
[397227856,1765158650322,-2322.15,9.327e-05,2]
[397227858,1765158650331,-500.0,9.327e-05,2]
[397227860,1765158650340,-871.29,9.327e-05,2]
[397227862,1765158650349,-500.0,9.327e-05,2]
[397227864,1765158650357,-500.0,9.327e-05,2]
[397227866,1765158650366,-500.0,9.327e-05,2]
[397227868,1765158650375,-500.0,9.327e-05,2]
[397227870,1765158650385,-895.3,9.327e-05,2]
[397227872,1765158650394,-500.0,9.327e-05,2]
[397227873,1765158650402,-500.0,9.327e-05,2]
[397227875,1765158650412,-509.63,9.327e-05,2]
[397227877,1765158650421,-1129.99,9.327e-05,2]
[397227879,1765158650430,-500.0,9.327e-05,2]
[397227881,1765158650439,-1003.79,9.327e-05,2]
[397227883,1765158650448,-500.0,9.327e-05,2]
[397227885,1765158650457,-500.0,9.327e-05,2]
[397227887,1765158650466,-500.0,9.327e-05,2]
[397227889,1765158650475,-500.0,9.327e-05,2]
[397227891,1765158650484,-500.0,9.327e-05,2]
[397227893,1765158650493,-500.0,9.327e-05,2]
[397227895,1765158650503,-1240.81,9.327e-05,2]
[397227897,1765158650512,-750.88,9.327e-05,2]
[397227899,1765158650521,-500.0,9.327e-05,2]
[397227901,1765158650530,-688.27,9.327e-05,2]
[397227903,1765158650539,-500.0,9.327e-05,2]
[397227905,1765158650549,-500.0,9.327e-05,2]
[397227907,1765158650558,-500.0,9.327e-05,2]
[397227909,1765158650567,-500.0,9.327e-05,2]
[397227911,1765158650576,-500.0,9.327e-05,2]
[397227913,1765158650585,-755.81,9.327e-05,2]
[397227915,1765158650594,-716.68,9.327e-05,2]
[397227917,1765158650603,-500.0,9.327e-05,2]
[397227919,1765158650612,-500.0,9.327e-05,2]
[397227921,1765158650621,-500.0,9.327e-05,2]
[397227923,1765158650631,-1016.46,9.327e-05,2]
[397227925,1765158650640,-500.0,9.327e-05,2]
[397227927,1765158650649,-974.03,9.327e-05,2]
[397227929,1765158650659,-1068.22,9.327e-05,2]
[397227931,1765158650669,-500.0,9.327e-05,2]
[397227933,1765158650678,-500.0,9.327e-05,2]
[397227935,1765158650687,-500.0,9.327e-05,2]
[397227937,1765158650699,-500.0,9.327e-05,2]
[397227939,1765158650708,-500.0,9.327e-05,2]
[397227941,1765158650717,-528.68,9.327e-05,2]
[397227943,1765158650726,-4996.66,9.327e-05,2]
[397227945,1765158650736,-632.5,9.327e-05,2]
[397227947,1765158650746,-533.64560016,9.327e-05,2]
[397227949,1765158650755,-500.0,9.327e-05,2]
[397227951,1765158650764,-500.0,9.327e-05,2]
[397227953,1765158650773,-500.0,9.327e-05,2]
[397227955,1765158650782,-675.26,9.327e-05,2]
[397227957,1765158650792,-500.0,9.327e-05,2]
[397227959,1765158650801,-759.5,9.327e-05,2]
[397227961,1765158650810,-500.0,9.327e-05,2]
[397227963,1765158650819,-500.0,9.327e-05,2]
[397227965,1765158650828,-933.57,9.327e-05,2]
[397227967,1765158650837,-500.0,9.327e-05,2]
[397227969,1765158650847,-500.0,9.327e-05,2]
[397227971,1765158650855,-91758.1,9.327e-05,2]
[397227973,1765158650864,-946.64,9.327e-05,2]
[397227975,1765158650874,-500.0,9.327e-05,2]
[397227977,1765158650883,-500.0,9.327e-05,2]
[397227979,1765158650892,-500.0,9.327e-05,2]
[397227981,1765158650902,-852.07,9.327e-05,2]
[397227983,1765158650911,-3981.46,9.327e-05,2]
[397227985,1765158650919,-500.0,9.327e-05,2]
[397227987,1765158650929,-500.0,9.327e-05,2]
[397227989,1765158650938,-500.0,9.327e-05,2]
[397227991,1765158650947,-575.78,9.327e-05,2]
[397227993,1765158650958,-939.83,9.327e-05,2]
[397227995,1765158650967,-500.0,9.327e-05,2]
[397227996,1765158650976,-2182.91,9.327e-05,2]
[397227998,1765158650985,-2735.74,9.327e-05,2]
[397228000,1765158650994,-751.42,9.327e-05,2]
[397228002,1765158651003,-500.0,9.327e-05,2]
[397228004,1765158651011,-500.0,9.327e-05,2]
[397228006,1765158651020,-684.27,9.327e-05,2]
[397228008,1765158651032,-500.0,9.327e-05,2]
[397228010,1765158651040,-500.0,9.327e-05,2]
[397228012,1765158651049,-500.0,9.327e-05,2]
[397228014,1765158651059,-500.0,9.327e-05,2]
[397228016,1765158651071,-500.0,9.327e-05,2]
[397228018,1765158651080,-500.0,9.327e-05,2]
[397228020,1765158651089,-1418.88,9.327e-05,2]
[397228022,1765158651098,-500.0,9.327e-05,2]
[397228024,1765158651107,-277.54181313,9.327e-05,2]
[397228026,1765158651116,-500.0,9.327e-05,2]
[397228028,1765158651124,-553.88,9.327e-05,2]
[397228030,1765158651133,-1375.36,9.327e-05,2]
[397228032,1765158651142,-500.0,9.327e-05,2]
[397228033,1765158651151,-1286.65,9.327e-05,2]
[397228035,1765158651160,-500.0,9.327e-05,2]
[397228037,1765158651169,-500.0,9.327e-05,2]
[397228039,1765158651178,-805.0,9.327e-05,2]
[397228041,1765158651186,-500.0,9.327e-05,2]
[397228043,1765158651195,-781.81,9.327e-05,2]
[397228045,1765158651204,-500.0,9.327e-05,2]
[397228047,1765158651213,-500.0,9.327e-05,2]
[397228049,1765158651222,-500.0,9.327e-05,2]
[397228051,1765158651230,-1196.1,9.327e-05,2]
[397228053,1765158651239,-500.0,9.327e-05,2]
[397228055,1765158651248,-1090.88,9.327e-05,2]
[397228057,1765158651257,-960.88,9.327e-05,2]
[397228059,1765158651265,-1239.57,9.327e-05,2]
[397228061,1765158651274,-520.59624803,9.327e-05,2]
[397228063,1765158651283,-500.0,9.327e-05,2]
[397228065,1765158651291,-500.0,9.327e-05,2]
[397228067,1765158651300,-1935.01,9.327e-05,2]
[397228069,1765158651309,-500.0,9.327e-05,2]
[397228071,1765158651318,-733.53,9.327e-05,2]
[397228072,1765158651327,-500.0,9.327e-05,2]
[397228074,1765158651335,-643.95307093,9.327e-05,2]
[397228076,1765158651344,-958.11,9.327e-05,2]
[397228078,1765158651353,-500.0,9.327e-05,2]
[397228080,1765158651362,-1924.25,9.327e-05,2]